bitfinex/quotes_ETHUSD_20250810
["timestamp","ask_amount","ask_price","bid_price","bid_amount"]
[1754828148774,0.4679,4181.4,4180.7,2.39193893]
[1754828148775,0.1192,4181.1,4180.7,2.39193893]
[1754828148974,3.734,4181.0,4180.7,2.39193893]
[1754828149177,4.2019,4181.0,4180.7,2.39193893]
[1754828149380,0.1192,4181.1,4180.5,0.12]
[1754828149682,3.734,4180.9,4180.8,2.39188672]
[1754828149854,3.734,4180.9,4180.8,2.92886551]
[1754828150176,3.734,4180.9,4180.8,3.39476551]
[1754828150347,0.4679,4182.0,4180.8,1.00287879]
[1754828150550,0.1192,4181.8,4181.5,2.39148562]
[1754828150782,3.733,4181.7,4181.6,2.39139644]
[1754828150982,0.1192,4181.8,4181.7,2.39137193]
[1754828151167,3.8522,4181.8,4181.7,2.39137193]
[1754828151681,3.8522,4181.8,4181.2,1.0613]
[1754828151682,3.733,4181.8,4181.2,3.33375577]
[1754828151990,3.0380066,4182.2,4181.2,3.33375577]
[1754828152285,2.39124897,4182.0,4181.1,0.55]
[1754828152463,2.39124897,4182.0,4181.2,2.39165789]
[1754828152806,5.29292089,4182.1,4180.8,4.00287879]
[1754828152978,7.6840753,4182.1,4181.4,2.39150293]
[1754828153281,7.6840753,4182.1,4180.8,0.55]
[1754828153484,7.6840753,4182.1,4181.3,2.39156396]
[1754828153687,7.6840753,4182.1,4181.4,2.39153115]
[1754828153984,7.6840753,4182.1,4181.5,2.39146996]
[1754828153985,3.733,4182.0,4181.5,2.39146996]
[1754828154348,0.4992,4181.9,4181.1,0.4659]
[1754828154552,0.4992,4181.9,4181.0,2.86796745]
[1754828154553,0.9671,4181.9,4181.4,2.39150001]
[1754828154753,4.96143342,4182.7,4180.4,0.55]
[1754828154754,2.39137937,4181.7,4180.4,0.55]
[1754828154954,2.39156486,4181.4,4180.6,2.39195703]
[1754828155179,2.39156486,4181.4,4180.6,2.39194673]
[1754828155450,0.9671,4181.3,4180.2,0.551]
[1754828155686,0.4679,4181.3,4180.9,2.39178768]
[1754828156058,4.2322,4181.6,4181.0,2.39173294]
[1754828156375,3.733,4181.5,4180.8,0.55]
[1754828156576,3.733,4181.5,4181.1,2.39169189]
[1754828157486,3.733,4181.5,4180.8,0.55]
[1754828157665,3.733,4181.5,4181.0,0.55]
[1754828157666,3.732,4181.5,4181.0,0.55]
[1754828157993,3.732,4181.5,4181.2,2.94161041]
[1754828158290,3.732,4181.5,4181.0,2.39172587]
[1754828158495,0.9671,4181.4,4181.0,2.39172587]
[1754828158988,0.9671,4181.4,4181.1,2.39168544]
[1754828159192,0.4679,4181.3,4180.9,2.39177302]
[1754828159577,0.4679,4181.3,4181.0,2.39175964]
[1754828159891,0.4992,4181.4,4180.5,0.55]
[1754828160096,3.732,4181.5,4181.3,2.39159467]
[1754828160399,4.96143342,4182.7,4181.5,0.55]
[1754828160594,0.002,4182.8,4182.7,2.3908002]
[1754828160796,0.002,4182.8,4182.7,2.9647082]
[1754828161091,0.002,4182.8,4182.7,3.8829002]
[1754828161257,0.002,4182.6,4182.5,2.39086188]
[1754828161460,0.002,4182.6,4182.5,2.85676188]
[1754828161861,0.002,4182.6,4182.5,2.39086188]
[1754828162096,0.002,4182.6,4182.5,2.51006188]
[1754828162258,0.002,4182.6,4182.5,3.45216188]
[1754828162461,0.002,4182.6,4182.5,2.51006188]
[1754828162764,0.002,4182.6,4182.5,0.1192]
[1754828163069,0.4699,4182.6,4182.5,0.1192]
[1754828163392,0.9691,4182.6,4182.1,2.51032091]
[1754828163866,0.9691,4182.6,4182.2,2.39103071]
[1754828164066,0.9691,4182.6,4182.3,2.39100201]
[1754828164262,0.002,4182.6,4182.2,2.39108127]
[1754828164462,0.002,4182.6,4182.1,0.1192]
[1754828164668,0.002,4182.6,4182.2,2.39108603]
[1754828165079,0.4699,4182.6,4182.1,2.51029384]
[1754828165290,0.5012,4182.6,4182.1,0.1192]
[1754828165498,0.4679,4182.5,4181.7,0.55]
[1754828165666,3.731,4182.4,4181.9,0.1192]
[1754828165866,4.1989,4182.4,4181.9,2.51045458]
[1754828166068,4.1989,4182.4,4181.9,0.1192]
[1754828166268,0.9671,4182.3,4181.9,0.1192]
[1754828166778,3.731,4182.4,4181.8,0.1]
[1754828166779,0.9671,4182.2,4181.8,0.1]
[1754828166975,1.0863,4182.2,4181.8,0.1]
[1754828167868,0.4679,4182.1,4181.8,0.1]
[1754828168266,0.9671,4182.1,4181.8,0.1]
[1754828168499,0.4679,4182.0,4181.8,0.1]
[1754828168801,3.731,4181.9,4181.8,0.1]
[1754828169096,7.20855756,4181.9,4181.8,0.1]
[1754828174905,6.24145756,4181.9,4181.8,0.1]
[1754828175094,6.70935756,4181.9,4181.8,0.1]
[1754828175295,7.20855756,4181.9,4181.8,0.1]
[1754828175507,8.20330212,4181.9,4181.8,0.1]
[1754828177278,4.84494456,4181.9,4181.8,0.1]
[1754828177794,3.8502,4181.9,4181.8,0.1]
[1754828178179,7.15465756,4181.9,4181.8,0.1]
[1754828183328,7.15465756,4181.9,4181.8,0.101]
[1754828183516,10.15465756,4181.9,4181.8,0.101]
[1754828183682,9.24145756,4181.9,4181.8,0.101]
[1754828183891,10.49604108,4181.9,4181.8,0.101]
[1754828184090,11.40924108,4181.9,4181.8,0.101]
[1754828184450,11.40924108,4181.9,4181.8,0.09552228]
[1754828184915,11.40924108,4181.9,4181.8,0.08552228]
[1754828185216,41.91696285,4181.9,4181.8,0.08552228]
[1754828185634,2.3917723,4181.0,4180.9,0.001]
[1754828185930,9.1207723,4181.0,4180.9,0.001]
[1754828186097,10.0339723,4181.0,4180.9,0.001]
[1754828186625,10.1531723,4181.0,4180.9,0.001]
[1754828187396,14.1531723,4181.0,4180.9,0.001]
[1754828187619,15.80765896,4181.0,4180.9,0.001]
[1754828188497,11.80765896,4181.0,4180.9,0.001]
[1754828189529,11.80665896,4181.0,4180.9,0.001]
[1754828190128,11.35225896,4181.0,4180.9,0.001]
[1754828190328,11.80665896,4181.0,4180.9,0.001]
[1754828191906,9.41488666,4181.0,4180.9,0.001]
[1754828192104,0.1192,4181.0,4180.9,0.001]
[1754828192293,0.1192,4181.0,4180.9,0.9099]
[1754828192493,3.728,4181.0,4180.9,0.9099]
[1754828192917,3.728,4181.0,4180.9,0.452]
[1754828193737,3.728,4181.0,4180.9,0.9099]
[1754828193921,3.728,4181.0,4180.9,0.4689]
[1754828194444,3.728,4181.0,4180.9,0.011]
[1754828194743,7.4176923,4181.0,4180.9,0.011]
[1754828194901,10.4176923,4181.0,4180.9,0.011]
[1754828195635,44.4176923,4181.0,4180.9,0.011]
[1754828197135,50.06381946,4181.0,4180.9,0.011]
[1754828197339,50.69671631,4181.0,4180.9,0.011]
[1754828197502,50.06381946,4181.0,4180.9,0.011]
[1754828198110,49.93164309,4181.0,4180.9,0.011]
[1754828198298,49.25594913,4181.0,4180.9,0.011]
[1754828198495,49.71034913,4181.0,4180.9,0.011]
[1754828198706,49.82954913,4181.0,4180.9,0.011]
[1754828199113,50.04978087,4181.0,4180.9,0.011]
[1754828200409,49.82954913,4181.0,4180.9,0.011]
[1754828200622,48.91734913,4181.0,4180.9,0.011]
[1754828200998,49.83054913,4181.0,4180.9,0.011]
[1754828201605,42.07014913,4181.0,4180.9,0.011]
[1754828201806,15.0239723,4181.0,4180.9,0.011]
[1754828202109,11.2969723,4181.0,4180.9,0.011]
[1754828202314,12.6322,4181.0,4180.9,0.011]
[1754828202704,15.0239723,4181.0,4180.9,0.011]
[1754828203310,11.0239723,4181.0,4180.9,0.011]
[1754828203628,12.3830749,4181.0,4180.9,0.011]
[1754828204417,45.8418749,4181.0,4180.9,0.011]
[1754828204608,46.80381817,4181.0,4180.9,0.011]
[1754828205410,47.02406142,4181.0,4180.9,0.011]
[1754828205725,46.80381817,4181.0,4180.9,0.011]
[1754828205923,45.89061817,4181.0,4180.9,0.011]
[1754828206142,50.80381817,4181.0,4180.9,0.011]
[1754828208241,51.02409639,4181.0,4180.9,0.011]
[1754828209051,51.1562614,4181.0,4180.9,0.011]
[1754828211760,51.78915825,4181.0,4180.9,0.011]
[1754828212569,2.39200114,4180.6,4180.5,0.001]
[1754828212727,40.01032886,4180.6,4180.5,0.001]
[1754828212927,41.43737213,4180.6,4180.5,0.001]
[1754828213169,5.39205836,4180.5,4180.4,1e-08]
[1754828213381,36.25204486,4180.5,4180.4,1e-08]
[1754828213557,39.48858554,4180.5,4180.4,1e-08]
[1754828213756,39.49670528,4180.5,4180.4,1e-08]
[1754828215433,38.57720528,4180.5,4180.4,1e-08]
[1754828215625,46.85798554,4180.5,4180.4,1e-08]
[1754828215939,47.33458554,4180.5,4180.4,1e-08]
[1754828216344,47.33472862,4180.5,4180.4,1e-08]
[1754828217259,47.88472862,4180.5,4180.4,1e-08]
[1754828218260,55.03371267,4180.5,4180.4,1e-08]
[1754828218682,55.03371267,4180.5,4179.8,0.001]
[1754828218683,0.55,4180.1,4179.8,1e-08]
[1754828218974,5.51240173,4179.9,4179.8,1e-08]
[1754828219131,36.37253131,4179.9,4179.8,1e-08]
[1754828219332,37.92675432,4179.9,4179.8,1e-08]
[1754828219535,1.61168738,4181.3,4180.1,1.60339783]
[1754828219729,0.15915849,4183.0,4181.2,2.39165789]
[1754828220028,0.002,4183.1,4181.2,2.39165789]
[1754828220029,1e-08,4183.1,4183.0,2.39062873]
[1754828220239,1e-08,4183.1,4183.0,8.51960904]
[1754828220473,0.002,4183.2,4183.0,8.51960904]
[1754828220474,4.124,4183.4,4183.1,2.39057158]
[1754828220763,0.002,4183.6,4183.4,2.39040015]
[1754828220970,1e-08,4183.5,4183.4,35.61364787]
[1754828221282,4.12600001,4183.5,4183.4,6.4708049]
[1754828221560,4.12600001,4183.5,4183.4,5.61364787]
[1754828222463,4.11800001,4183.5,4183.4,5.61364787]
[1754828223047,4.11800001,4183.5,4183.4,5.73284787]
[1754828224064,4.11800001,4183.5,4183.4,5.73153233]
[1754828224274,1e-08,4184.1,4183.4,5.73150868]
[1754828224439,4.786,4186.3,4185.8,2.38902612]
[1754828224794,4.786,4186.3,4185.9,5.01524434]
[1754828224795,4.114,4186.2,4185.9,5.01524434]
[1754828224938,4.786,4186.3,4186.1,2.38885836]
[1754828225143,4.786,4186.3,4186.2,5.01509514]
[1754828225372,8.901,4186.3,4186.2,2.61041271]
[1754828225572,9.0202,4186.3,4186.2,2.61041271]
[1754828225980,9.0202,4186.3,4186.2,0.22161142]
[1754828226270,9.0202,4186.3,4186.2,2.61041271]
[1754828227853,9.0122,4186.3,4186.2,2.61041271]
[1754828228182,9.0122,4186.3,4186.2,2.93001271]
[1754828228381,9.0122,4186.3,4186.2,2.61041271]
[1754828230255,9.0122,4186.3,4186.2,3.16041271]
[1754828230256,1.96895384,4186.3,4186.2,3.16041271]
[1754828230548,0.0583254,4187.4,4186.2,3.16041271]
[1754828230549,0.1192,4186.9,4186.3,5.38874423]
[1754828230768,4.094,4186.4,4186.3,5.92995565]
[1754828230955,4.094,4186.4,4186.3,5.61035565]
[1754828231474,1.26224401,4186.4,4186.3,5.95575565]
[1754828231673,1.26224401,4186.4,4186.3,7.28304657]
[1754828231878,0.1192,4186.9,4186.5,3.0]
[1754828232179,4.088,4186.8,4186.6,0.22161142]
[1754828232350,4.9022,4187.2,4186.8,3.0]
[1754828232551,4.084,4187.1,4187.0,5.38834487]
[1754828232856,4.084,4187.1,4187.0,5.95535629]
[1754828233753,4.783,4187.2,4187.1,5.38828783]
[1754828233959,8.862,4187.2,4187.1,5.95529925]
[1754828234158,0.1192,4187.7,4187.1,5.95529925]
[1754828234159,1e-08,4187.7,4187.5,0.55]
[1754828234351,1e-08,4187.7,4187.2,0.55]
[1754828234352,1e-08,4187.7,4187.6,6.27881409]
[1754828234547,4.09100001,4187.7,4187.6,5.72881409]
[1754828234986,4.09100001,4187.7,4187.6,5.60961409]
[1754828235489,4.09100001,4187.7,4186.3,1.19575822]
[1754828235657,4.09100001,4187.7,4187.6,2.38800267]
[1754828235858,4.09100001,4187.7,4187.6,0.21827757]
[1754828236171,5.01050001,4187.7,4187.6,0.21827757]
[1754828236548,4.09100001,4187.7,4187.6,2.73719616]
[1754828237347,4.52880001,4187.7,4187.6,0.34919349]
[1754828237551,5.61128001,4187.7,4187.6,0.34919349]
[1754828238874,5.61128001,4187.7,4187.6,2.73719616]
[1754828240058,5.61128001,4187.7,4187.6,0.34919349]
[1754828240977,5.61128001,4187.7,4187.6,2.73719616]
[1754828241657,4.98168001,4187.7,4187.6,2.73719616]
[1754828242088,4.06700001,4187.7,4187.6,2.73719616]
[1754828242599,4.06700001,4187.7,4187.6,5.73719616]
[1754828242754,0.002,4188.6,4188.5,2.38748955]
[1754828242954,4.064,4188.6,4188.5,0.34919349]
[1754828243262,5.1314,4188.6,4188.5,0.34919349]
[1754828243463,5.64454,4188.6,4188.5,0.34919349]
[1754828244351,5.01494,4188.6,4188.5,2.73668304]
[1754828244578,4.5018,4188.6,4188.5,2.73668304]
[1754828244754,0.002,4188.6,4188.5,2.73668304]
[1754828244966,4.061,4188.6,4188.5,2.51840547]
[1754828245986,0.002,4188.6,4188.5,2.51890174]
[1754828246186,4.061,4188.6,4188.5,2.51890174]
[1754828246390,0.002,4188.6,4188.5,2.51890174]
[1754828246565,0.002,4188.6,4188.5,6.02147109]
[1754828246764,4.056,4188.6,4188.5,6.02147109]
[1754828247357,4.056,4188.6,4188.5,6.36707109]
[1754828247562,4.056,4188.6,4188.5,6.91707109]
[1754828248390,0.17707266,4188.6,4188.5,6.91707109]
[1754828248605,0.0875078,4188.6,4188.5,6.91707109]
[1754828249280,0.002,4189.0,4188.9,2.93726157]
[1754828249482,4.048,4189.0,4188.9,6.90113384]
[1754828249683,4.048,4189.0,4188.9,6.88892165]
[1754828249884,4.048,4189.0,4188.9,6.33892165]
[1754828250098,4.048,4189.0,4188.9,5.50646157]
[1754828250302,4.4858,4189.0,4188.9,2.38726157]
[1754828250800,4.4858,4189.0,4188.7,2.38737555]
[1754828250991,4.4858,4189.0,4188.9,2.38726157]
[1754828251498,4.048,4189.0,4188.9,2.38726157]
[1754828251864,4.048,4189.0,4188.9,2.50646157]
[1754828252068,4.048,4189.0,4188.9,6.72664519]
[1754828252276,4.048,4189.0,4188.9,7.19144519]
[1754828254476,4.048,4189.0,4188.9,7.83260067]
[1754828255207,4.229,4189.4,4189.3,0.55]
[1754828255377,4.229,4189.4,4189.3,3.6692]
[1754828255576,4.229,4189.4,4189.3,7.12818789]
[1754828256607,4.229,4189.4,4188.9,0.78938362]
[1754828256782,4.229,4189.4,4188.9,0.55]
[1754828256984,1.0674,4189.3,4189.0,2.38720458]
[1754828257182,1.0674,4189.2,4189.0,2.38720458]
[1754828257382,1.0674,4189.2,4188.4,0.63925202]
[1754828257383,1.0674,4189.2,4189.1,2.38714759]
[1754828257599,1.0674,4189.2,4188.8,2.38728753]
[1754828257600,4.229,4189.4,4188.9,0.55]
[1754828257773,4.229,4189.4,4189.3,2.38703363]
[1754828257774,0.2,4189.4,4189.3,2.38703363]
[1754828257979,4.223,4189.4,4189.3,2.38703363]
[1754828258978,4.221,4189.4,4189.3,5.93703363]
[1754828259311,4.221,4189.4,4189.3,7.06944804]
[1754828260538,4.221,4189.4,4189.3,5.93703363]
[1754828262012,4.6588,4189.4,4189.3,5.38703363]
[1754828263114,5.2884,4189.4,4189.3,5.38703363]
[1754828263578,5.2884,4189.4,4189.3,3.0]
[1754828264079,5.2884,4189.4,4189.3,5.38703363]
[1754828264579,4.6588,4189.4,4189.3,5.38703363]
[1754828265185,4.6588,4189.4,4189.3,3.0]
[1754828265387,5.2884,4189.4,4189.3,3.0]
[1754828265708,5.2884,4189.4,4189.3,5.38703363]
[1754828265915,4.6588,4189.4,4189.3,3.0]
[1754828266095,5.2884,4189.4,4189.3,3.0]
[1754828266702,8.20423188,4189.4,4188.4,3.02679646]
[1754828266911,2.50634695,4189.2,4188.6,0.1192]
[1754828267212,3.996,4189.1,4188.6,3.1192]
[1754828267516,1.1128,4189.0,4188.7,3.0]
[1754828267690,3.996,4189.1,4188.6,0.1192]
[1754828268046,1.1128,4188.9,4188.7,3.0]
[1754828268215,1.1128,4188.9,4188.8,2.38731856]
[1754828268421,3.992,4188.8,4188.7,2.38736068]
[1754828269215,3.992,4188.8,4188.7,5.38736068]
[1754828270686,3.992,4188.8,4188.7,3.0]
[1754828270890,5.1048,4188.8,4188.7,3.0]
[1754828271297,5.1048,4188.8,4188.6,0.1202]
[1754828271489,1.1128,4188.7,4188.6,0.001]
[1754828271783,1.1128,4188.7,4187.9,0.63925202]
[1754828271784,2.38759372,4188.4,4187.9,0.63925202]
[1754828271989,5.0938,4188.3,4187.8,3.1192]
[1754828272224,1.1128,4188.2,4187.8,0.1192]
[1754828272522,1.6341,4188.2,4187.7,0.001]
[1754828272695,1.232,4188.1,4187.7,0.001]
[1754828272881,0.4405,4188.4,4187.9,2.38777837]
[1754828273082,3.979,4188.3,4187.9,2.38777837]
[1754828273281,3.979,4188.3,4188.2,2.38766057]
[1754828273526,3.979,4188.3,4187.8,3.0]
[1754828273527,3.978,4188.3,4188.1,0.1192]
[1754828273726,3.978,4188.3,4187.7,0.64025202]
[1754828273727,0.4405,4188.2,4187.7,0.001]
[1754828273928,1.1128,4188.2,4187.9,0.1192]
[1754828274111,0.6723,4188.2,4187.9,2.5070162]
[1754828274309,0.4405,4188.1,4187.9,3.1192]
[1754828274514,3.977,4188.0,4187.9,3.1192]
[1754828274834,4.4175,4188.0,4187.9,0.1192]
[1754828274986,5.0898,4188.0,4187.9,0.1192]
[1754828276998,7.47757459,4188.0,4187.9,0.1192]
[1754828277232,7.47757459,4188.0,4187.7,0.001]
[1754828277548,1.1128,4187.9,4187.7,0.001]
[1754828277834,4.4175,4188.0,4187.7,0.001]
[1754828278019,3.977,4188.0,4187.7,2.38894158]
[1754828278535,3.977,4188.0,4187.7,2.38893134]
[1754828278891,4.4175,4188.0,4187.7,0.001]
[1754828279296,0.4405,4188.6,4187.7,0.91615299]
[1754828279502,3.963,4188.5,4188.2,2.38761528]
[1754828279798,3.963,4188.5,4188.1,3.0]
[1754828280028,4.4055,4188.4,4188.2,3.0]
[1754828280230,4.4055,4188.4,4188.2,2.38766057]
[1754828280443,1.1128,4188.3,4187.9,0.64228652]
[1754828280743,2.38771758,4188.1,4187.7,0.001]
[1754828280908,3.969,4188.0,4187.7,0.001]
[1754828281108,5.0818,4188.0,4187.7,0.001]
[1754828281318,3.5006357,4187.9,4187.7,0.001]
[1754828281695,1.1128,4187.8,4187.7,0.001]
[1754828282334,4.24765439,4187.8,4187.7,0.001]
[1754828284100,8.20965439,4187.8,4187.7,0.001]
[1754828285199,5.0708,4187.8,4187.7,0.001]
[1754828285429,2.82838862,4187.8,4187.7,0.001]
[1754828285634,7.45668862,4187.8,4187.7,0.001]
[1754828289325,0.5597,4187.8,4187.7,0.001]
[1754828289634,4.5157,4187.8,4187.7,0.001]
[1754828289935,4.0702,4187.8,4187.7,0.001]
[1754828290713,6.89858862,4187.8,4187.7,0.001]
[1754828290914,8.49952743,4187.8,4187.7,0.001]
[1754828292602,4.0662,4187.8,4187.7,0.001]
[1754828292829,0.1192,4187.8,4187.7,0.001]
[1754828293036,4.0652,4187.8,4187.7,0.001]
[1754828293230,6.45308862,4187.8,4187.7,0.001]
[1754828293535,4.0652,4187.8,4187.7,0.001]
[1754828293838,4.5057,4187.8,4187.7,0.001]
[1754828294417,4.0652,4187.8,4187.7,0.001]
[1754828296015,0.1192,4187.8,4187.7,0.001]
[1754828296222,3.936,4187.8,4187.7,0.001]
[1754828296821,3.936,4187.8,4187.7,2.38894565]
[1754828297217,3.936,4187.8,4187.7,0.001]
[1754828297440,4.3801,4187.8,4187.7,0.001]
[1754828297737,5.0138,4187.8,4187.7,0.001]
[1754828298451,3.932,4187.8,4187.7,0.001]
[1754828299013,4.3761,4187.8,4187.7,0.001]
[1754828299607,5.0098,4187.8,4187.7,0.001]
[1754828301047,7.39768862,4187.8,4187.7,0.001]
[1754828301212,8.38815664,4187.8,4187.7,0.001]
[1754828305155,38.38815664,4187.8,4187.7,0.001]
[1754828305334,38.83012998,4187.8,4187.7,0.001]
[1754828305945,5.38794565,4187.7,4187.6,1e-08]
[1754828306152,37.02685955,4187.7,4187.6,1e-08]
[1754828306358,39.34390023,4187.7,4187.6,1e-08]
[1754828306558,39.47644435,4187.7,4187.6,1e-08]
[1754828307037,39.47634445,4187.7,4187.6,1e-08]
[1754828307557,2.38811673,4187.4,4187.3,1e-08]
[1754828307763,39.85713067,4187.4,4187.3,1e-08]
[1754828308056,38.54253807,4187.4,4187.3,1e-08]
[1754828308355,42.45053807,4187.4,4187.3,1e-08]
[1754828309262,7.93092413,4187.4,4187.3,1e-08]
[1754828309460,9.00872413,4187.4,4187.3,1e-08]
[1754828310451,7.92992413,4187.4,4187.3,1e-08]
[1754828310664,6.41131673,4187.4,4187.3,1e-08]
[1754828311745,0.1192,4187.4,4187.3,1e-08]
[1754828311944,4.0202,4187.4,4187.3,1e-08]
[1754828315836,3.892,4187.4,4187.3,1e-08]
[1754828316035,4.778,4188.1,4187.4,2.38807512]
[1754828316036,0.1192,4187.6,4187.4,2.38807512]
[1754828316238,4.778,4188.1,4187.5,2.3880597]
[1754828316439,0.1192,4187.8,4187.5,2.3880597]
[1754828316640,3.891,4187.7,4187.5,2.3880597]
[1754828316869,3.891,4187.7,4187.6,2.38800267]
[1754828318079,3.891,4187.7,4187.4,2.38807362]
[1754828318377,3.891,4187.7,4187.5,2.38801365]
[1754828318569,3.891,4187.7,4187.4,2.38811673]
[1754828318743,3.891,4187.7,4187.5,2.3880597]
[1754828318943,4.778,4188.1,4187.6,2.38800267]
[1754828319174,0.1192,4188.0,4187.7,2.38789827]
[1754828319345,3.885,4187.9,4187.7,2.3878982]
[1754828319545,3.885,4187.9,4187.5,0.35268409]
[1754828320086,3.885,4187.9,4187.8,2.50708862]
[1754828320460,3.885,4187.9,4187.8,2.88568862]
[1754828320774,3.885,4187.9,4187.8,2.50708862]
[1754828320958,3.885,4187.9,4187.8,2.88688862]
[1754828321363,3.885,4187.9,4187.8,2.88568862]
[1754828321563,3.885,4187.9,4187.8,3.47847586]
[1754828321946,3.885,4187.9,4187.8,4.11945702]
[1754828322190,3.885,4187.9,4187.8,7.11945702]
[1754828322392,3.885,4187.9,4187.8,7.88443289]
[1754828322690,3.885,4187.9,4187.8,7.88563289]
[1754828322894,4.778,4188.1,4188.0,2.93777459]
[1754828323186,8.656,4188.1,4188.0,4.64491534]
[1754828324090,8.656,4188.1,4188.0,3.71511534]
[1754828324302,8.656,4188.1,4188.0,3.02968896]
[1754828324488,9.1001,4188.1,4188.0,2.38777459]
[1754828325204,8.656,4188.1,4188.0,2.38777459]
[1754828325404,8.656,4188.1,4187.9,3.02973478]
[1754828325617,8.656,4188.1,4188.0,5.38777459]
[1754828325778,8.656,4188.1,4188.0,2.38777459]
[1754828326603,8.656,4188.1,4187.9,3.0]
[1754828326804,9.1001,4188.1,4187.9,3.0]
[1754828327100,9.1001,4188.1,4187.8,0.1192]
[1754828327262,8.656,4188.1,4188.0,2.38777459]
[1754828327690,8.65,4188.1,4188.0,2.38777459]
[1754828327990,8.649,4188.1,4188.0,2.38777459]
[1754828328195,4.778,4188.1,4188.0,2.38777459]
[1754828328389,8.649,4188.1,4188.0,2.38777459]
[1754828328581,8.648,4188.1,4188.0,2.38777459]
[1754828328771,8.646,4188.1,4188.0,2.38777459]
[1754828332709,8.637,4188.1,4188.0,2.38777459]
[1754828334799,8.639,4188.1,4188.0,2.38777459]
[1754828336802,4.78,4188.1,4188.0,2.38777459]
[1754828337009,8.63,4188.1,4188.0,2.38777459]
[1754828339208,8.63,4188.1,4188.0,6.02902411]
[1754828339421,4.78,4188.1,4188.0,6.02902411]
[1754828339624,8.626,4188.1,4188.0,8.11285781]
[1754828339796,8.626,4188.1,4188.0,8.82972981]
[1754828340127,3.848,4188.1,4188.0,7.97257278]
[1754828341041,0.002,4189.1,4189.0,5.38720458]
[1754828341207,0.465,4190.1,4189.0,5.38720458]
[1754828341208,0.465,4190.1,4189.2,0.55]
[1754828341537,0.11035532,4190.9,4189.3,6.05623363]
[1754828341538,0.465,4190.4,4189.3,6.05623363]
[1754828341737,4.045,4189.4,4189.3,6.43483363]
[1754828341939,0.5842,4190.4,4189.4,5.93697665]
[1754828341940,1e-08,4189.5,4189.4,5.93697665]
[1754828342237,0.465,4190.5,4190.2,2.38652092]
[1754828342528,0.04,4190.9,4190.2,5.50572092]
[1754828342529,3.851,4190.3,4190.2,5.50572092]
[1754828342836,4.4968,4190.3,4190.2,5.50572092]
[1754828342999,3.851,4190.3,4190.2,5.50572092]
[1754828344334,0.6858,4190.9,4190.3,3.55]
[1754828344335,0.04,4190.9,4190.3,3.55]
[1754828344534,0.04,4190.9,4190.8,3.69687597]
[1754828344698,0.04,4190.9,4190.8,6.14687597]
[1754828344899,1.1508,4190.9,4190.8,5.38617924]
[1754828345304,0.04,4190.9,4190.8,5.38617924]
[1754828345731,0.04,4190.9,4190.8,5.50537924]
[1754828346404,0.505,4190.9,4190.8,5.50537924]
[1754828346799,0.04,4190.9,4190.8,5.50537924]
[1754828349214,0.04,4190.9,4190.8,6.29454566]
[1754828350364,0.04,4190.9,4190.8,6.84454566]
[1754828351947,1e-08,4190.9,4190.8,6.84454566]
[1754828352456,1e-08,4190.9,4190.8,7.24824566]
[1754828352657,1e-08,4190.9,4190.8,6.84454566]
[1754828353258,1e-08,4190.9,4190.8,7.12904566]
[1754828353761,1e-08,4190.9,4190.8,6.72534566]
[1754828357650,0.43670001,4190.9,4190.8,6.72534566]
[1754828358362,0.00200001,4190.9,4190.8,6.72534566]
[1754828362064,0.43870001,4190.9,4190.8,6.72534566]
[1754828362252,1.09900001,4190.9,4190.8,5.93617924]
[1754828362460,1.09900001,4190.9,4190.8,5.38617924]
[1754828362656,1.09900001,4190.9,4190.8,3.0]
[1754828362860,1.09900001,4190.9,4190.3,0.716467]
[1754828363043,1.097,4190.8,4190.5,2.38630493]
[1754828363249,0.00200001,4190.9,4190.7,0.1192]
[1754828363881,1.097,4190.8,4190.7,2.50543618]
[1754828364049,1.097,4190.8,4190.7,0.1192]
[1754828364486,1.097,4190.8,4190.1,0.716496]
[1754828364487,1.589,4190.8,4190.1,0.716496]
[1754828364649,2.38652903,4190.2,4189.7,0.1192]
[1754828364848,1.097,4190.1,4189.7,0.1192]
[1754828365159,1.097,4190.0,4189.7,3.1192]
[1754828365379,1.097,4189.9,4189.7,0.1192]
[1754828365753,1.097,4189.8,4189.7,2.50600573]
[1754828366358,0.4367,4189.8,4189.7,2.50600573]
[1754828366564,0.4367,4189.8,4189.7,2.99529827]
[1754828367300,4.4833,4190.1,4189.9,3.0]
[1754828367599,1.097,4190.0,4189.8,3.0]
[1754828367972,1.097,4189.9,4189.8,3.0]
[1754828368485,1.097,4189.9,4189.2,3.0]
[1754828368647,1.097,4189.8,4189.3,0.1192]
[1754828368847,2.38680698,4189.7,4188.9,2.38724998]
[1754828369051,1.0885179,4189.9,4187.9,3.82]
[1754828369052,3.82,4189.6,4189.1,0.1192]
[1754828369281,1.097,4189.5,4189.1,0.1192]
[1754828369505,1.097,4189.5,4189.2,2.38709061]
[1754828369795,1.097,4189.4,4189.1,0.1192]
[1754828370171,3.82,4189.6,4189.1,3.1192]
[1754828370399,1.097,4189.3,4189.1,0.1192]
[1754828370574,2.38731508,4188.9,4188.4,0.1192]
[1754828370775,3.816,4188.8,4188.2,0.1192]
[1754828370963,4.913,4188.8,4188.2,3.1192]
[1754828371159,3.816,4188.8,4188.2,3.1192]
[1754828371361,1.097,4188.7,4188.2,0.1192]
[1754828371681,1.097,4188.7,4188.4,2.38753108]
[1754828371890,3.816,4188.8,4188.3,5.38758751]
[1754828372081,1.097,4188.6,4188.5,5.38748955]
[1754828372866,1.097,4188.6,4188.5,3.0]
[1754828374104,1.097,4188.6,4188.2,0.1192]